bitfinex-derivatives/quotes_BTCF0:USTF0_20251219
["timestamp","ask_amount","ask_price","bid_price","bid_amount"]
[1766125486114,0.00576,86981.0,86965.0,0.0115063]
[1766125486415,0.00576,86980.0,86961.0,0.0172667]
[1766125486815,0.00017243,86982.0,86961.0,0.0172667]
[1766125487016,0.00368,86981.0,86961.0,0.0172667]
[1766125487211,0.00017243,86982.0,86961.0,0.0172667]
[1766125487616,0.00364,86981.0,86961.0,0.0172667]
[1766125489111,0.00017243,86982.0,86961.0,0.0172667]
[1766125489517,0.00364,86981.0,86961.0,0.0172667]
[1766125489716,0.00484,86980.0,86961.0,0.0172667]
[1766125490108,0.20336968,86980.0,86961.0,0.0172667]
[1766125492021,0.00576,86979.0,86961.0,0.00576]
[1766125493422,0.0115046,86978.0,86961.0,0.00576]
[1766125497628,0.011505,86975.0,86961.0,0.00576]
[1766125498318,0.19852968,86970.0,86950.0,0.0115081]
[1766125498524,0.00576,86969.0,86951.0,0.00576]
[1766125501031,0.00576,86969.0,86955.0,0.0115075]
[1766125501425,0.00576,86969.0,86951.0,0.017268]
[1766125502429,0.00576,86969.0,86951.0,0.00576]
[1766125505634,0.0172658,86969.0,86951.0,0.00576]
[1766125505835,0.19852968,86961.0,86951.0,0.00576]
[1766125506036,0.0115062,86966.0,86951.0,0.00576]
[1766125506242,0.19852968,86961.0,86946.0,0.0115088]
[1766125506536,0.20428968,86961.0,86945.0,0.00576]
[1766125507034,0.00576,86961.0,86945.0,0.00576]
[1766125508341,0.19852968,86960.0,86945.0,0.00576]
[1766125509739,0.00576,86961.0,86945.0,0.00576]
[1766125510039,0.00017243,86962.0,86945.0,0.00576]
[1766125510241,0.00017243,86962.0,86949.0,0.0115084]
[1766125510537,0.00593243,86962.0,86945.0,0.0172688]
[1766125510939,0.00593243,86962.0,86945.0,0.00576]
[1766125512341,0.00593243,86962.0,86948.0,0.0115084]
[1766125513344,0.09063072,86981.0,86951.0,0.0115081]
[1766125513345,0.0115052,86974.0,86951.0,0.0115081]
[1766125513949,0.0036,86973.0,86958.0,0.0115071]
[1766125514144,0.19852968,86980.0,86958.0,0.0115071]
[1766125514444,0.00017243,86978.0,86960.0,0.00017243]
[1766125514950,0.0172647,86977.0,86960.0,0.00017243]
[1766125515336,0.00017243,86978.0,86960.0,0.00017243]
[1766125515540,0.00576,86977.0,86960.0,0.00017243]
[1766125515744,0.00576,86977.0,86964.0,0.0115063]
[1766125517144,0.00292,86985.0,86967.0,0.011506]
[1766125517343,0.21003278,86990.0,86967.0,0.011506]
[1766125517533,0.00576,86986.0,86964.0,0.00576]
[1766125517948,0.00576,86986.0,86968.0,0.0115058]
[1766125518246,0.00593243,86986.0,86964.0,0.00576]
[1766125518542,0.19852968,86974.0,86964.0,0.00576]
[1766125518841,0.19852968,86974.0,86960.0,0.00017243]
[1766125520644,0.00017243,86986.0,86960.0,0.00017243]
[1766125520645,0.19852968,86980.0,86960.0,0.00017243]
[1766125520950,0.00017243,86986.0,86960.0,0.19870211]
[1766125521452,0.00576,86993.0,86962.0,0.03102173]
[1766125521642,0.00576,86993.0,86963.0,0.03102173]
[1766125521843,0.00576,86993.0,86964.0,0.00576]
[1766125522251,0.00017243,86987.0,86964.0,0.00576]
[1766125523150,0.00017243,86987.0,86974.0,0.0115051]
[1766125523347,0.00017243,86987.0,86975.0,0.00576]
[1766125525142,0.00017243,86987.0,86976.0,0.0115048]
[1766125525746,0.00017243,86987.0,86975.0,0.00576]
[1766125526948,0.00017243,86987.0,86975.0,0.0172649]
[1766125527348,0.00017243,86987.0,86979.0,0.0115044]
[1766125527551,0.00017243,86987.0,86975.0,0.00576]
[1766125530253,0.00017243,86987.0,86975.0,0.0172649]
[1766125530749,0.00017243,86987.0,86975.0,0.00576]
[1766125533260,0.00017243,86987.0,86976.0,0.0115048]
[1766125533458,0.00017243,86987.0,86975.0,0.0172649]
[1766125535553,0.00017243,86987.0,86979.0,0.0115044]
[1766125536452,0.011501,87006.0,86975.0,0.00576]
[1766125536655,0.19852968,87000.0,86984.0,0.0115037]
[1766125536854,0.0036,86999.0,86984.0,0.0115037]
[1766125538657,2.43e-06,87000.0,86987.0,0.0115033]
[1766125538960,2.43e-06,87001.0,86990.0,0.011503]
[1766125541855,0.83879955,88052.0,86990.0,0.011503]
[1766125541856,0.0114986,87023.0,86991.0,0.00576]
[1766125542048,0.00576,87019.0,87003.0,0.0115012]
[1766125542248,0.00576,87019.0,86990.0,0.19852968]
[1766125542249,0.06200445,87039.0,87009.0,0.19852968]
[1766125542452,0.0114951,87050.0,87024.0,0.0114983]
[1766125542655,0.00576,87049.0,87024.0,0.0172583]
[1766125542860,0.19852968,87040.0,87024.0,0.00576]
[1766125543154,0.19852968,87034.0,87023.0,0.00017243]
[1766125543356,0.19852968,87034.0,87023.0,2.43e-06]
[1766125544361,0.0114967,87038.0,87023.0,2.43e-06]
[1766125544860,0.19852968,87040.0,87023.0,2.43e-06]
[1766125545247,0.0114966,87039.0,87023.0,2.43e-06]
[1766125545454,0.19829722,87033.0,87023.0,2.43e-06]
[1766125545653,0.00576,87032.0,87023.0,2.43e-06]
[1766125548859,0.00576,87039.0,87027.0,0.011498]
[1766125549261,0.00011181,87041.0,87027.0,0.011498]
[1766125552163,0.00011181,87041.0,87023.0,0.01150093]
[1766125552358,0.19829722,87033.0,87023.0,2.43e-06]
[1766125553165,0.00576,87036.0,87023.0,2.43e-06]
[1766125554163,0.00576,87036.0,87023.0,0.01150093]
[1766125554362,0.00576,87036.0,87023.0,2.43e-06]
[1766125558370,0.00576,87036.0,87024.0,0.0114985]
[1766125558572,0.00576,87036.0,87023.0,2.43e-06]
[1766125561967,0.19829722,87033.0,87023.0,2.43e-06]
[1766125563576,0.00576,87036.0,87023.0,2.43e-06]
[1766125566278,0.19829722,87033.0,87020.0,2.43e-06]
[1766125566573,0.19829722,87030.0,87020.0,2.43e-06]
[1766125566874,0.19829722,87030.0,87020.0,0.01150133]
[1766125567372,0.19829722,87030.0,87020.0,2.43e-06]
[1766125570881,0.19829722,87030.0,87016.0,0.01167183]
[1766125571074,0.19829722,87030.0,87017.0,0.00576]
[1766125573076,0.19829722,87030.0,87018.0,0.0114992]
[1766125573385,0.00576,87031.0,87018.0,0.0114992]
[1766125574174,0.00576,87031.0,87017.0,0.00576]
[1766125574374,0.19829722,87030.0,87017.0,0.00576]
[1766125585288,0.19829722,87030.0,87016.0,0.00017243]
[1766125585492,0.19829722,87030.0,87016.0,0.00593243]
[1766125593194,0.00576,87031.0,87016.0,0.00593243]
[1766125593400,0.00576,87036.0,87023.0,0.0114985]
[1766125593592,0.00576,87036.0,87025.0,0.0114983]
[1766125598398,0.00011181,87041.0,87026.0,0.19829722]
[1766125598597,0.00011181,87041.0,87030.0,0.19829722]
[1766125598797,0.00011181,87041.0,87031.0,0.00576]
[1766125599102,1.81e-06,87041.0,87032.0,0.0114974]
[1766125600198,1.81e-06,87041.0,87034.0,0.011497]
[1766125600399,1.81e-06,87041.0,87039.0,0.0114964]
[1766125601399,0.00052,87057.0,87044.0,0.0114957]
[1766125601600,0.00052,87057.0,87045.0,0.00576]
[1766125603804,0.00052,87057.0,87046.0,0.0114956]
[1766125604199,0.19846927,87060.0,87049.0,0.0114952]
[1766125604200,0.00017205,87060.0,87049.0,0.0114952]
[1766125604602,3e-08,87058.0,87045.0,0.00576]
[1766125605110,3e-08,87058.0,87048.0,0.19829722]
[1766125605507,0.00576,87065.0,87045.0,0.00576]
[1766125606206,0.00576,87065.0,87052.0,0.0114947]
[1766125606406,0.00576,87065.0,87053.0,0.00576]
[1766125606706,0.0114914,87078.0,87053.0,0.00576]
[1766125606904,0.00576,87077.0,87053.0,0.00576]
[1766125607104,0.00576,87077.0,87055.0,0.0114943]
[1766125607711,0.00576,87077.0,87053.0,0.00576]
[1766125607896,0.0114917,87076.0,87053.0,0.00576]
[1766125608509,0.00576,87075.0,87053.0,0.0172546]
[1766125609010,0.0114917,87076.0,87053.0,0.0172546]
[1766125609310,0.00576,87075.0,87053.0,0.0172546]
[1766125612202,0.00576,87075.0,87056.0,0.0114942]
[1766125612611,0.00576,87075.0,87053.0,0.00576]
[1766125614103,0.00576,87075.0,87054.0,0.0114944]
[1766125614302,0.00576,87075.0,87053.0,0.00576]
[1766125614602,0.00576,87075.0,87053.0,0.0172546]
[1766125614914,0.00576,87074.0,87053.0,0.0172546]
[1766125617303,0.00576,87074.0,87044.0,2.4148]
[1766125617304,0.19811899,87070.0,87054.0,0.00544]
[1766125618001,0.011492,87073.0,87054.0,0.00544]
[1766125618201,0.19811899,87070.0,87054.0,0.00544]
[1766125618805,0.00576,87069.0,87054.0,0.00576]
[1766125621706,0.0114928,87068.0,87047.0,0.0114954]
[1766125621907,0.0114928,87068.0,87048.0,0.00368]
[1766125622323,0.00576,87069.0,87049.0,0.0114951]
[1766125624419,0.00576,87069.0,87052.0,0.0114948]
[1766125624717,0.00576,87069.0,87055.0,0.0114944]
[1766125625511,0.00576,87069.0,87058.0,0.011494]
[1766125625711,0.19811899,87080.0,87058.0,0.011494]
[1766125626019,0.00576,87079.0,87060.0,0.00017232]
[1766125626222,0.00576,87078.0,87060.0,0.00017232]
[1766125626413,0.00576,87078.0,87060.0,0.00173232]
[1766125627424,0.00576,87078.0,87063.0,0.0114933]
[1766125628625,0.0044,87077.0,87060.0,0.00173232]
[1766125628818,0.0044,87077.0,87061.0,0.0114936]
[1766125629220,0.0044,87077.0,87060.0,0.00173232]
[1766125630120,0.0044,87077.0,87060.0,0.01322602]
[1766125631526,1e-06,87081.0,87063.0,0.0114933]
[1766125632325,1e-06,87081.0,87060.0,0.00173232]
[1766125632525,0.20961009,87080.0,87060.0,0.00173232]
[1766125632822,0.0114915,87077.0,87060.0,0.00173232]
[1766125633026,0.00576,87076.0,87060.0,0.00173232]
[1766125633229,0.00576,87076.0,87060.0,2.32e-06]
[1766125633528,0.0114935,87062.0,87045.0,2.41416]
[1766125633720,0.19811899,87055.0,87036.0,0.03092504]
[1766125634025,0.00576,87054.0,87035.0,0.04242204]
[1766125634220,0.00017232,87053.0,87041.0,0.0114962]
[1766125634422,2e-08,87053.0,87047.0,0.0114954]
[1766125634630,2e-08,87053.0,87050.0,0.011495]
[1766125635130,2e-08,87053.0,87042.0,0.00576]
[1766125635424,2e-08,87053.0,87044.0,0.0114958]
[1766125636920,2e-08,87053.0,87042.0,0.00576]
[1766125637627,2e-08,87053.0,87043.0,0.0114959]
[1766125638525,2e-08,87053.0,87046.0,0.0114955]
[1766125639024,2e-08,87053.0,87042.0,0.00576]
[1766125639224,2e-08,87053.0,87047.0,0.0114953]
[1766125639527,2e-08,87053.0,87046.0,0.0114955]
[1766125640522,2e-08,87053.0,87042.0,0.017256]
[1766125642718,2e-08,87053.0,87048.0,0.0114953]
[1766125644128,2e-08,87053.0,87048.0,0.0172553]
[1766125645234,2e-08,87053.0,87049.0,0.00576]
[1766125646135,2e-08,87053.0,87050.0,0.011495]
[1766125646836,2e-08,87053.0,87049.0,0.00576]
[1766125647235,2e-08,87053.0,87050.0,0.011495]
[1766125647439,1e-06,87081.0,87050.0,0.19811899]
[1766125647735,1e-06,87081.0,87065.0,0.011493]
[1766125647934,0.005761,87081.0,87068.0,0.0114926]
[1766125648132,0.005761,87081.0,87051.0,0.0114948]
[1766125648133,1e-06,87081.0,87069.0,0.0172525]
[1766125648332,1e-06,87081.0,87073.0,0.0114919]
[1766125648532,1e-06,87081.0,87069.0,0.0172525]
[1766125649833,1e-06,87081.0,87069.0,0.00576]
[1766125651440,0.19811899,87080.0,87066.0,0.00017232]
[1766125651632,1e-06,87081.0,87067.0,0.00576]
[1766125651835,0.0114912,87079.0,87068.0,0.00576]
[1766125652236,0.011492,87073.0,87060.0,0.00576]
[1766125652431,0.19811899,87070.0,87060.0,0.00576]
[1766125653137,0.0114918,87075.0,87060.0,0.00576]
[1766125653333,0.00017232,87076.0,87060.0,0.00576]
[1766125654632,0.00017232,87076.0,87063.0,0.0114932]
[1766125655043,0.00017232,87076.0,87065.0,0.0114929]
[1766125655434,2.32e-06,87076.0,87068.0,0.0114926]
[1766125655833,2.32e-06,87076.0,87060.0,0.0172536]
[1766125660946,2.32e-06,87076.0,87060.0,0.00576]
[1766125661239,0.01149402,87076.0,87059.0,0.00017232]
[1766125661442,0.19811899,87070.0,87060.0,0.00576]
[1766125661642,0.19811899,87070.0,87059.0,0.00593232]
[1766125661838,0.19811899,87070.0,87044.0,0.0114957]
[1766125662044,0.19811899,87060.0,87045.0,0.00576]
[1766125662440,0.20961149,87070.0,87046.0,0.0114955]
[1766125662947,0.20961149,87070.0,87049.0,0.00017232]
[1766125663943,0.20961149,87070.0,87049.0,0.01166742]
[1766125664151,0.19811899,87070.0,87049.0,0.01166742]
[1766125664348,0.19811899,87070.0,87049.0,0.00017232]
[1766125665750,0.19811899,87070.0,87049.0,0.01166742]
[1766125666147,0.20961139,87070.0,87049.0,0.01166742]
[1766125667050,0.19811899,87070.0,87049.0,0.01166742]
[1766125667447,0.19816522,87060.0,87049.0,0.01166742]
[1766125668542,0.19816522,87060.0,87052.0,0.0114947]
[1766125669152,0.19816522,87060.0,87049.0,0.01166742]
[1766125670454,0.19816522,87060.0,87051.0,0.0114948]
[1766125671956,0.19816522,87060.0,87053.0,0.0114945]
[1766125672162,0.00576,87062.0,87056.0,0.0114941]
[1766125672454,0.00576,87069.0,87059.0,0.0114938]
[1766125672655,0.00576,87069.0,87055.0,0.0114943]
[1766125672857,0.00576,87069.0,87049.0,0.00017232]
[1766125673058,0.19816522,87060.0,87049.0,0.00017232]
[1766125673259,0.19816522,87060.0,87050.0,0.011495]
[1766125674459,0.00576,87064.0,87050.0,0.011495]
[1766125676360,0.19816522,87060.0,87050.0,0.011495]
[1766125676762,0.19816522,87060.0,87049.0,0.00017232]
[1766125676968,0.19816522,87060.0,87049.0,0.01166742]
[1766125677357,0.19816522,87060.0,87049.0,0.00017232]
[1766125677862,0.19816522,87060.0,87050.0,0.00576]
[1766125678169,0.19816522,87060.0,87049.0,0.00593232]
[1766125678562,0.19816522,87060.0,87049.0,2.32e-06]
[1766125678766,0.19816522,87060.0,87042.0,0.00576]
[1766125679073,0.19816522,87050.0,87042.0,0.00576]
[1766125679771,0.00017232,87055.0,87042.0,0.00576]
[1766125680675,0.00017232,87055.0,87043.0,0.0114959]
[1766125680870,0.00017232,87055.0,87046.0,0.0114955]
[1766125684170,0.20392522,87060.0,87042.0,0.00576]
[1766125684372,0.19816522,87060.0,87042.0,0.00576]
[1766125685078,0.19833754,87060.0,87049.0,0.011495]
[1766125687588,0.19833754,87060.0,87042.0,0.00576]
[1766125687781,0.19833754,87060.0,87050.0,0.011495]
[1766125691283,0.00017232,87060.0,87050.0,0.011495]
[1766125691468,0.19833754,87060.0,87050.0,0.011495]
[1766125692589,0.19833754,87060.0,87043.0,0.0114958]
[1766125692886,0.19833754,87060.0,87045.0,0.0114956]
[1766125693384,0.00017232,87060.0,87042.0,0.03668504]
[1766125693578,0.00017232,87060.0,87051.0,0.0114948]
[1766125699087,0.00576,87068.0,87057.0,0.011494]
[1766125699294,0.19816522,87067.0,87044.0,0.03092504]
[1766125699499,0.17772522,87060.0,87053.0,0.0114946]
[1766125699682,0.00576,87068.0,87053.0,0.0114946]
[1766125703897,0.00576,87068.0,87055.0,0.0114942]
[1766125705194,0.00576,87068.0,87052.0,0.01742702]
[1766125706683,0.00576,87068.0,87055.0,0.0114943]
[1766125707682,0.00576,87068.0,87052.0,0.00593232]
[1766125708989,0.00576,87068.0,87053.0,0.0114946]
[1766125709508,0.00576,87068.0,87052.0,0.00593232]
[1766125710389,0.19816522,87062.0,87046.0,0.0114955]
[1766125710590,0.19816522,87056.0,87047.0,0.00576]
[1766125710790,0.00576,87056.0,87038.0,0.03092504]
[1766125710984,0.00576,87056.0,87039.0,0.00576]
[1766125710985,0.19816522,87050.0,87039.0,0.00576]
[1766125711193,0.19816522,87049.0,87031.0,0.00201422]
[1766125711503,0.19816522,87042.0,87032.0,0.00576]
[1766125712101,0.19816522,87042.0,87033.0,0.00576]
[1766125712994,0.00576,87046.0,87033.0,0.00576]
[1766125713602,0.00576,87046.0,87033.0,0.0172572]
[1766125720307,0.00576,87046.0,87036.0,0.0114968]
[1766125725205,0.00576,87046.0,87033.0,0.00576]
[1766125725711,0.00576,87046.0,87033.0,0.00777418]
[1766125727114,0.19816522,87043.0,87033.0,0.00777418]
[1766125727509,0.00576,87046.0,87033.0,0.00777418]
[1766125729418,0.19824853,87043.0,87033.0,0.00201418]
[1766125729613,0.00576,87046.0,87031.0,0.00017232]
[1766125733205,0.19824853,87041.0,87031.0,0.00017232]
[1766125733410,0.19824853,87041.0,87028.0,0.00108]
[1766125734315,0.00576,87046.0,87028.0,0.00108]
[1766125737526,0.00576,87046.0,87029.0,0.0114977]
[1766125744520,0.00576,87046.0,87032.0,0.0114973]
[1766125745528,0.00576,87045.0,87032.0,0.0114973]
[1766125745727,0.00017232,87049.0,87026.0,0.00593232]
[1766125745931,2.32e-06,87049.0,87047.0,0.0114954]
[1766125746225,2.32e-06,87049.0,87043.0,0.0114959]
[1766125746420,2.32e-06,87049.0,87041.0,0.00576]
[1766125746818,2.32e-06,87049.0,87032.0,0.0114973]
[1766125747023,2.32e-06,87049.0,87034.0,0.0114971]
[1766125747225,2.32e-06,87049.0,87033.0,0.00576]
[1766125749620,2.32e-06,87049.0,87034.0,0.0114971]
[1766125753329,2.32e-06,87049.0,87033.0,0.00576]
[1766125754030,2.32e-06,87049.0,87033.0,0.0172572]
[1766125754526,2.32e-06,87049.0,87033.0,0.00576]
[1766125760039,0.00076,87054.0,87042.0,0.0114959]
[1766125760436,0.00076,87054.0,87044.0,0.0114957]
[1766125760932,0.00576,87056.0,87042.0,0.00576]
[1766125763136,0.00576,87057.0,87042.0,0.00576]
[1766125764838,0.00576,87057.0,87043.0,0.0114959]
[1766125765435,2.32e-06,87058.0,87046.0,0.0114955]
[1766125765935,2.32e-06,87058.0,87043.0,0.0114959]
[1766125766726,2.32e-06,87058.0,87046.0,0.0114955]
[1766125766931,2.32e-06,87060.0,87046.0,0.0114955]
[1766125767333,2.32e-06,87060.0,87048.0,0.0114952]
[1766125769241,2.32e-06,87060.0,87045.0,0.0114957]
[1766125770147,0.19825085,87060.0,87042.0,0.00576]
[1766125770338,0.19825085,87060.0,87043.0,0.0114958]
[1766125771342,2.32e-06,87060.0,87043.0,0.0114958]
[1766125772736,2.32e-06,87060.0,87045.0,0.0114955]
[1766125772940,2.32e-06,87060.0,87049.0,0.0114951]
[1766125774644,2.32e-06,87060.0,87046.0,0.0114955]
[1766125775145,2.32e-06,87060.0,87048.0,0.0114952]
[1766125776046,2.32e-06,87060.0,87050.0,0.0114949]
[1766125776236,0.19824853,87070.0,87042.0,0.00576]
[1766125776438,0.00576,87069.0,87050.0,0.0114949]
[1766125782146,0.00576,87069.0,87042.0,0.00576]
[1766125783449,0.00576,87069.0,87049.0,0.011495]
[1766125783654,0.00576,87069.0,87050.0,0.00576]
[1766125789464,0.19814945,87060.0,87050.0,0.00576]
[1766125789656,0.17797945,87060.0,87050.0,0.00576]
[1766125789862,0.00576,87069.0,87051.0,0.0114948]
[1766125790763,0.00576,87069.0,87054.0,0.0114944]
[1766125791263,0.19814945,87070.0,87054.0,0.0114944]
[1766125793066,0.19814945,87070.0,87051.0,0.0114949]
[1766125793661,0.19814945,87070.0,87054.0,0.0114945]
[1766125794063,0.19814945,87070.0,87057.0,0.0114941]
[1766125794359,0.00576,87071.0,87057.0,0.0114941]
[1766125794560,0.19814945,87080.0,87050.0,0.20390945]
[1766125794761,0.20390945,87080.0,87065.0,0.0114929]
[1766125795361,0.20390945,87080.0,87064.0,0.00017232]
[1766125795961,0.19814945,87074.0,87064.0,0.00017232]
[1766125796162,0.20390945,87080.0,87064.0,0.00017232]
[1766125801168,0.0114912,87079.0,87064.0,0.00017232]
[1766125801472,0.19814945,87074.0,87064.0,0.00017232]
[1766125801676,0.20390945,87074.0,87051.0,2.4142]
[1766125801857,0.19814945,87060.0,87052.0,0.00576]
[1766125802057,0.00576,87066.0,87052.0,0.00576]
[1766125802368,0.19814945,87062.0,87048.0,0.00576]
[1766125802761,0.00017232,87064.0,87052.0,0.0114947]
[1766125802963,0.00017232,87064.0,87055.0,0.0114943]
[1766125803371,0.00017232,87064.0,87051.0,0.0114948]
[1766125805075,0.00017232,87064.0,87049.0,0.0114951]
[1766125806077,0.00017232,87064.0,87048.0,0.00576]
[1766125806266,0.00017232,87064.0,87052.0,0.0114947]
[1766125806474,0.00017232,87064.0,87050.0,0.19814945]
[1766125806671,2.32e-06,87064.0,87050.0,0.19814945]
[1766125806972,2.32e-06,87064.0,87048.0,0.00576]
[1766125808681,2.32e-06,87064.0,87049.0,0.0114951]
[1766125808873,2.32e-06,87064.0,87050.0,0.19814945]
[1766125809879,2.32e-06,87064.0,87048.0,0.00576]
[1766125811077,2.32e-06,87064.0,87052.0,0.0114947]
[1766125811869,2.32e-06,87064.0,87048.0,0.0172551]
[1766125812373,2.32e-06,87064.0,87048.0,0.00576]
[1766125812970,2.32e-06,87064.0,87049.0,0.0114951]
[1766125816586,2.32e-06,87064.0,87048.0,0.00576]
[1766125817578,2.32e-06,87064.0,87052.0,0.0114946]
[1766125818295,2.32e-06,87064.0,87049.0,0.0114951]
[1766125819677,2.32e-06,87064.0,87046.0,0.00017232]
[1766125819678,0.19814945,87060.0,87046.0,0.00017232]
[1766125819887,0.19814945,87060.0,87047.0,0.00576]
[1766125821580,0.20964355,87057.0,87048.0,0.00576]
[1766125821783,0.00576,87059.0,87033.0,0.03092504]
[1766125821983,0.19814945,87043.0,87034.0,0.00576]
[1766125822185,0.19814945,87050.0,87035.0,0.011497]
[1766125823893,0.19814945,87050.0,87034.0,0.00593232]
[1766125827103,0.0114952,87049.0,87034.0,0.00593232]
[1766125828588,0.0114964,87040.0,87019.0,0.03092504]
[1766125828788,0.19814945,87031.0,87022.0,0.00576]
[1766125830291,0.19814945,87031.0,87018.0,0.00247071]
[1766125830498,0.19814945,87028.0,87018.0,0.00247071]
[1766125831387,0.19814945,87028.0,87002.0,0.03092504]
[1766125831388,0.19814945,87028.0,87013.0,0.00576]
[1766125831588,0.19814945,87023.0,87013.0,0.00576]
[1766125831789,0.19814945,87023.0,87003.0,0.00014842]
[1766125831987,0.00576,87024.0,87004.0,0.00576]
[1766125831988,0.19814945,87020.0,87004.0,0.00576]
[1766125832190,0.0114991,87019.0,87004.0,0.00576]
[1766125832380,0.0114991,87019.0,87003.0,0.00032074]
[1766125832381,0.19814945,87014.0,87003.0,0.00032074]
[1766125834598,0.19814945,87013.0,87003.0,0.00032074]
[1766125835387,0.00576,87016.0,87003.0,0.00032074]
[1766125844707,0.19814945,87013.0,87003.0,0.00032074]
[1766125844898,0.00576,87016.0,87003.0,0.00032074]
[1766125848311,0.00017232,87017.0,87003.0,0.00032074]
[1766125848502,2.32e-06,87017.0,87003.0,0.00032074]
[1766125849202,2.32e-06,87017.0,87007.0,0.19814945]
[1766125849406,2.32e-06,87017.0,87009.0,0.0115004]
[1766125849599,2.32e-06,87017.0,87010.0,0.00576]
[1766125852512,2.32e-06,87017.0,87010.0,0.0172602]
[1766125852725,2.32e-06,87017.0,87010.0,0.00576]
[1766125856305,2.32e-06,87017.0,87011.0,0.00524]
[1766125858208,0.19828171,87030.0,87012.0,0.0114999]
[1766125859313,0.19845403,87030.0,87011.0,0.00524]
[1766125860221,0.19845403,87030.0,87011.0,0.0167401]
[1766125861309,0.19845403,87030.0,87011.0,0.00524]
[1766125861820,0.06200445,87042.0,87020.0,0.19828171]
[1766125862112,0.00576,87042.0,87021.0,0.00576]
[1766125863017,0.00017232,87040.0,87023.0,0.00017232]
[1766125864216,2.32e-06,87040.0,87023.0,0.00017232]
[1766125864420,2.32e-06,87040.0,87035.0,0.011497]
[1766125864718,2.32e-06,87040.0,87023.0,0.00017232]
[1766125864719,2.32e-06,87040.0,87033.0,0.00576]
[1766125866321,2.32e-06,87040.0,87034.0,0.0114971]
[1766125866522,2.32e-06,87040.0,87033.0,0.00576]
[1766125866722,2.32e-06,87040.0,87034.0,0.0114971]
[1766125873824,2.32e-06,87040.0,87037.0,0.0114967]
[1766125874223,2.32e-06,87040.0,87033.0,0.0172571]
[1766125876421,2.32e-06,87040.0,87033.0,0.00576]
[1766125876824,2.32e-06,87040.0,87031.0,0.00576]
[1766125877019,2.32e-06,87040.0,87029.0,0.00576]
[1766125877216,2.32e-06,87040.0,87023.0,0.00017232]
[1766125877621,0.01149872,87040.0,87024.0,0.00576]
[1766125879724,0.19828171,87034.0,87018.0,0.00576]
[1766125879921,0.19828171,87034.0,87018.0,0.00196]
[1766125880526,0.00576,87033.0,87018.0,0.00196]
[1766125880732,0.00576,87033.0,87018.0,0.0134592]
[1766125882431,0.00576,87033.0,87018.0,0.00196]
[1766125883524,0.011497,87036.0,87018.0,0.00196]
[1766125883732,0.00576,87035.0,87018.0,0.00196]
[1766125890730,0.00576,87035.0,87018.0,0.0134592]
[1766125891034,0.00576,87037.0,87024.0,0.0114984]
[1766125891337,0.00576,87037.0,87018.0,0.00196]
[1766125891638,0.0172565,87039.0,87018.0,0.00196]
[1766125894334,0.0114969,87036.0,87018.0,0.00196]
[1766125894535,0.0114969,87036.0,87018.0,0.00228]
[1766125894536,0.19828171,87030.0,87018.0,0.00228]
[1766125894742,0.19828171,87030.0,87018.0,0.00576]
[1766125896127,0.00576,87032.0,87018.0,0.00576]
[1766125901043,0.00576,87032.0,87018.0,0.0172591]
[1766125905545,0.00576,87032.0,87018.0,0.00576]
[1766125905938,0.0114996,87016.0,87003.0,0.00014842]
[1766125906146,0.19828171,87013.0,86991.0,0.00576]
[1766125906348,0.19828171,87001.0,86985.0,0.00576]
[1766125906649,0.011501,87005.0,86985.0,0.00576]
[1766125906650,0.017261,87005.0,86985.0,0.00576]
[1766125907045,0.00028956,87004.0,86986.0,0.01167573]
[1766125907239,0.00028956,87004.0,86989.0,0.011503]
[1766125908457,0.00028956,87004.0,86986.0,0.00017243]
[1766125908954,0.00028956,87004.0,86990.0,0.0115029]
[1766125909751,0.00452,87008.0,86986.0,0.00017243]
[1766125910247,0.00452,87008.0,86987.0,0.0115033]
[1766125910449,0.00452,87008.0,86986.0,0.00017243]
[1766125910845,0.00017243,87006.0,86989.0,0.011503]
[1766125911247,0.00017243,87006.0,86986.0,0.00017243]
[1766125911551,2.43e-06,87006.0,86990.0,0.19838035]
[1766125912351,2.43e-06,87006.0,86994.0,0.0115023]
[1766125912554,2.43e-06,87006.0,86994.0,0.0172623]
[1766125914856,2.43e-06,87006.0,86998.0,0.0115018]
[1766125915056,2.43e-06,87006.0,86994.0,0.0172623]
[1766125916548,2.43e-06,87006.0,86994.0,0.00576]
[1766125920061,2.43e-06,87006.0,86995.0,0.0115023]
[1766125920657,0.19838035,87010.0,86995.0,0.0115023]
[1766125920862,0.00576,87014.0,87000.0,0.19838035]
[1766125921062,0.00576,87014.0,87001.0,0.00576]
[1766125921771,0.19838035,87020.0,87001.0,0.00576]
[1766125921772,0.00576,87018.0,87002.0,0.0115013]
[1766125922659,0.00576,87018.0,87001.0,0.00576]
[1766125922854,0.00576,87018.0,87001.0,0.0172615]
[1766125923955,0.00576,87018.0,87001.0,0.00576]
[1766125928168,0.00576,87018.0,87004.0,0.0115011]
[1766125928962,0.00576,87018.0,87001.0,0.00576]
[1766125931272,0.00576,87018.0,87002.0,0.0115013]
[1766125932274,0.19838035,87020.0,87001.0,0.0172614]
[1766125932875,0.19838035,87020.0,87004.0,0.0115011]
[1766125935284,0.19838035,87020.0,87001.0,0.00576]
[1766125935478,0.19838035,87020.0,87002.0,0.0115013]
[1766125940380,0.19838035,87020.0,87005.0,0.0115009]
[1766125940677,0.06200445,87029.0,87010.0,0.19838035]
[1766125940869,0.0114973,87033.0,87010.0,0.19838035]
[1766125940870,0.00576,87028.0,87011.0,0.00576]
[1766125941075,0.00576,87027.0,87011.0,0.00576]
[1766125942883,0.00576,87027.0,87012.0,0.0115]
[1766125943281,0.19838035,87030.0,87012.0,0.0115]
[1766125943479,0.00436,87030.0,87011.0,0.00576]
[1766125945284,0.00436,87030.0,87015.0,0.0114995]
[1766125946574,0.00436,87030.0,87020.0,0.19838035]
[1766125946774,0.00436,87030.0,87019.0,0.00576]
[1766125947287,0.19838035,87040.0,87020.0,0.20987925]
[1766125947578,0.19838035,87040.0,87019.0,0.00576]
[1766125947579,0.19838035,87030.0,87021.0,0.00017243]
[1766125947784,0.00576,87039.0,87021.0,0.00017243]
[1766125948177,0.0114966,87038.0,87021.0,0.00017243]
[1766125949177,0.011497,87036.0,87021.0,0.00017243]
[1766125949882,0.00576,87039.0,87021.0,0.00017243]
[1766125954791,0.0114967,87038.0,87021.0,0.00017243]
[1766125954983,0.00576,87039.0,87021.0,0.00017243]
[1766125958890,0.0114966,87038.0,87021.0,0.00017243]
[1766125959197,0.00576,87039.0,87021.0,0.00017243]
[1766125959198,0.011497,87036.0,87021.0,0.00017243]
[1766125959694,0.0172565,87039.0,87021.0,0.00017243]
[1766125962193,0.0114969,87036.0,87021.0,0.00017243]
[1766125962499,0.19838035,87031.0,87019.0,0.00576]
[1766125963792,0.01166973,87034.0,87019.0,0.00576]